fUSD/lending_fUSD_20250117
["ID","MTS","AMOUNT","RATE_DAILY","PERIOD"]
[349300645,1737106265134,-500.0,0.0003,2]
[349300646,1737106265144,-500.0,0.0003,2]
[349300647,1737106265154,-500.0,0.0003,2]
[349300648,1737106265164,-500.0,0.0003,2]
[349300649,1737106265174,-500.0,0.0003,2]
[349300650,1737106265183,-500.0,0.0003,2]
[349300651,1737106265193,-500.0,0.0003,2]
[349300652,1737106265203,-500.0,0.0003,2]
[349300653,1737106265213,-500.0,0.0003,2]
[349300654,1737106265222,-500.0,0.0003,2]
[349300655,1737106265232,-500.0,0.0003,2]
[349300656,1737106265241,-64.77264613,0.0003,2]
[349300657,1737106265262,-435.22735387,0.0003,2]
[349300658,1737106265272,-500.0,0.0003,2]
[349300659,1737106265282,-500.0,0.0003,2]
[349300660,1737106265291,-500.0,0.0003,2]
[349300661,1737106265301,-500.0,0.0003,2]
[349300662,1737106265310,-500.0,0.0003,2]
[349300663,1737106265320,-500.0,0.0003,2]
[349300664,1737106265329,-500.0,0.0003,2]
[349300665,1737106265339,-500.0,0.0003,2]
[349300666,1737106265348,-500.0,0.0003,2]
[349300667,1737106265358,-500.0,0.0003,2]
[349300668,1737106265367,-500.0,0.0003,2]
[349300669,1737106265377,-500.0,0.0003,2]
[349300670,1737106265386,-420.6733184,0.0003,2]
[349300671,1737106265398,-79.3266816,0.0003,2]
[349300672,1737106265407,-500.0,0.0003,2]
[349300673,1737106265417,-352.10433182,0.0003,2]
[349300674,1737106265457,-147.89566818,0.0003,2]
[349300675,1737106265466,-500.0,0.0003,2]
[349300676,1737106265477,-500.0,0.0003,2]
[349300677,1737106265486,-500.0,0.0003,2]
[349300678,1737106265496,-500.0,0.0003,2]
[349300679,1737106265506,-500.0,0.0003,2]
[349300680,1737106265517,-500.0,0.0003,2]
[349300681,1737106265528,-500.0,0.0003,2]
[349300682,1737106265538,-500.0,0.0003,2]
[349300683,1737106265549,-500.0,0.0003,2]
[349300684,1737106265558,-500.0,0.0003,2]
[349300685,1737106265568,-500.0,0.0003,2]
[349300686,1737106265578,-500.0,0.0003,2]
[349300687,1737106265588,-500.0,0.0003,2]
[349300688,1737106265597,-500.0,0.0003,2]
[349300689,1737106265607,-500.0,0.0003,2]
[349300690,1737106265618,-500.0,0.0003,2]
[349300691,1737106265628,-397.96293946,0.0003,2]
[349300692,1737106265640,-102.03706054,0.0003,2]
[349300693,1737106265651,-500.0,0.0003,2]
[349300694,1737106265660,-500.0,0.0003,2]
[349300695,1737106265670,-500.0,0.0003,2]
[349300696,1737106265679,-500.0,0.0003,2]
[349300697,1737106265689,-500.0,0.0003,2]
[349300698,1737106265698,-500.0,0.0003,2]
[349300699,1737106265707,-500.0,0.0003,2]
[349300700,1737106265717,-575.0,0.0003,2]
[349300701,1737106265728,-500.0,0.0003,2]
[349300702,1737106265739,-500.0,0.0003,2]
[349300703,1737106265753,-500.0,0.0003,2]
[349300704,1737106265763,-500.0,0.0003,2]
[349300705,1737106265772,-500.0,0.0003,2]
[349300706,1737106265783,-500.0,0.0003,2]
[349300707,1737106265792,-500.0,0.0003,2]
[349300708,1737106265802,-500.0,0.0003,2]
[349300709,1737106265813,-500.0,0.0003,2]
[349300710,1737106265825,-500.0,0.0003,2]
[349300711,1737106265835,-500.0,0.0003,2]
[349300712,1737106265845,-500.0,0.0003,2]
[349300713,1737106265854,-500.0,0.0003,2]
[349300714,1737106265863,-500.0,0.0003,2]
[349300715,1737106265872,-500.0,0.0003,2]
[349300716,1737106265881,-500.0,0.0003,2]
[349300717,1737106265891,-500.0,0.0003,2]
[349300718,1737106265903,-500.0,0.0003,2]
[349300719,1737106265912,-500.0,0.0003,2]
[349300720,1737106265921,-500.0,0.0003,2]
[349300721,1737106265931,-500.0,0.0003,2]
[349300722,1737106265941,-500.0,0.0003,2]
[349300723,1737106265951,-500.0,0.0003,2]
[349300724,1737106265961,-500.0,0.0003,2]
[349300725,1737106265969,-500.0,0.0003,2]
[349300726,1737106265979,-500.0,0.0003,2]
[349300727,1737106265988,-500.0,0.0003,2]
[349300728,1737106265997,-500.0,0.0003,2]
[349300729,1737106266007,-500.0,0.0003,2]
[349300730,1737106266016,-500.0,0.0003,2]
[349300731,1737106266025,-500.0,0.0003,2]
[349300732,1737106266034,-500.0,0.0003,2]
[349300733,1737106266043,-500.0,0.0003,2]
[349300734,1737106266052,-500.0,0.0003,2]
[349300735,1737106266061,-500.0,0.0003,2]
[349300736,1737106266070,-500.0,0.0003,2]
[349300737,1737106266079,-500.0,0.0003,2]
[349300738,1737106266088,-500.0,0.0003,2]
[349300739,1737106266097,-500.0,0.0003,2]
[349300740,1737106266106,-500.0,0.0003,2]
[349300741,1737106266115,-500.0,0.0003,2]
[349300742,1737106266124,-500.0,0.0003,2]
[349300743,1737106266133,-500.0,0.0003,2]
[349300744,1737106266142,-500.0,0.0003,2]
[349300745,1737106266154,-500.0,0.0003,2]
[349300746,1737106266163,-500.0,0.0003,2]
[349300747,1737106266173,-500.0,0.0003,2]
[349300748,1737106266182,-500.0,0.0003,2]
[349300749,1737106266191,-500.0,0.0003,2]
[349300750,1737106266202,-500.0,0.0003,2]
[349300751,1737106266212,-500.0,0.0003,2]
[349300752,1737106266222,-500.0,0.0003,2]
[349300753,1737106266231,-500.0,0.0003,2]
[349300754,1737106266241,-202.0,0.0003004,30]
[349300755,1737106266250,-205.0,0.0003004,30]
[349300756,1737106266260,-205.0,0.0003004,2]
[349300757,1737106266270,-221.0,0.0003004,30]
[349300758,1737106266279,-618.84,0.00030105,120]
[349300759,1737106266288,-204.0,0.0003013,2]
[349300760,1737106266297,-200.0,0.0003013,2]
[349300761,1737106266307,-999.0,0.00030136,7]
[349300762,1737106266316,-438.08,0.00030137,2]
[349300763,1737106266325,-438.08,0.00030137,2]
[349300764,1737106266334,-2000.0,0.00030137,30]
[349300765,1737106266343,-165.05,0.00030166,2]
[349300766,1737106266352,-174.1,0.00030166,2]
[349300767,1737106266362,-500.0,0.00030208,120]
[349300768,1737106266371,-742.82546384,0.00030248,2]
[349300769,1737106266380,-500.0,0.00030397,10]
[349300770,1737106266389,-600.0,0.00030424,7]
[349300771,1737106266399,-2200.0,0.00030424,7]
[349300772,1737106266408,-6000.0,0.00030424,7]
[349300773,1737106266417,-1058.0,0.00030539,5]
[349300774,1737106266426,-158.33051,0.00030601,2]
[349300775,1737106266435,-279.204263,0.00030601,2]
[349300776,1737106266445,-150.0,0.00030685,2]
[349300777,1737106266454,-202.0,0.0003074,30]
[349300778,1737106266463,-205.0,0.0003074,30]
[349300779,1737106266473,-205.0,0.0003074,2]
[349300780,1737106266482,-221.0,0.0003074,30]
[349300781,1737106266492,-500.0,0.0003074,2]
[349300782,1737106266501,-500.0,0.0003074,2]
[349300783,1737106266510,-500.0,0.0003074,2]
[349300784,1737106266519,-500.0,0.0003074,2]
[349300785,1737106266529,-204.0,0.000308,2]
[349300786,1737106266538,-200.0,0.000308,2]
[349300787,1737106266547,-204.0,0.000308,2]
[349300788,1737106266556,-2278.13806,0.0003087,2]
[349300789,1737106266566,-500.0,0.00030879,2]
[349300790,1737106266576,-500.0,0.00030879,2]
[349300791,1737106266585,-28913.60256441,0.0003088,2]
[349300792,1737106266595,-173.88482316,0.00030899,2]
[349300793,1737106266604,-2240.0,0.000309,5]
[349300794,1737106266613,-279.204263,0.00030983,2]
[349300795,1737106266622,-650.0,0.00031,2]
[349300796,1737106266633,-502.3983411,0.0003107,2]
[349300797,1737106266645,-1543.3,0.00031096,2]
[349300798,1737106266656,-772.46,0.00031096,2]
[349300799,1737106266666,-500.0,0.00031198,120]
[349300800,1737106266675,-1800.77,0.000312,2]
[349300801,1737106266684,-763.8,0.00031222,2]
[349300802,1737106266694,-600.0,0.00031246,7]
[349300803,1737106266703,-2200.0,0.00031246,7]
[349300804,1737106266712,-6000.0,0.00031246,7]
[349300805,1737106266721,-500.0,0.00031331,120]
[349300806,1737106266730,-279.204263,0.00031366,2]
[349300807,1737106266740,-200.0,0.00031399,120]
[349300808,1737106266752,-202.0,0.0003145,30]
[349300809,1737106266761,-205.0,0.0003145,30]
[349300810,1737106266868,-158.75978276,0.0003145,2]
[349300811,1737106266882,-46.24021724,0.0003145,2]
[349300812,1737106266892,-221.0,0.0003145,30]
[349300813,1737106266902,-204.0,0.0003147,2]
[349300814,1737106266912,-200.0,0.0003147,2]
[349300815,1737106266921,-204.0,0.0003147,2]
[349300816,1737106266930,-235.0,0.0003147,2]
[349300817,1737106266939,-150.0,0.00031507,2]
[349300818,1737106266948,-320.37239412,0.00031507,2]
[349300819,1737106266959,-17.57760588,0.00031507,2]
[349300820,1737106266968,-150.0,0.00031507,2]
[349300821,1737106266977,-150.0,0.00031507,2]
[349300822,1737106266987,-677.76,0.00031507,2]
[349300823,1737106266996,-151.0,0.0003151,7]
[349300824,1737106267005,-151.0,0.0003151,7]
[349300825,1737106267016,-2618.47,0.000316,7]
[349300826,1737106267027,-341.353396,0.00031713,2]
[349300827,1737106267037,-500.0,0.00031713,2]
[349300828,1737106267046,-1862.0,0.00031714,2]
[349300829,1737106267055,-717.02271365,0.00031714,2]
[349300830,1737106267067,-189.97728635,0.00031714,2]
[349300831,1737106267076,-2945.0,0.00031714,2]
[349300832,1737106267085,-1260.0,0.00031714,2]
[349300833,1737106267095,-820.0,0.00031714,2]
[349300834,1737106267105,-537.0,0.00031714,2]
[349300835,1737106267115,-3981.0,0.00031714,2]
[349300836,1737106267124,-1105.0,0.00031714,2]
[349300837,1737106267135,-3899.0,0.00031714,2]
[349300838,1737106267146,-2017.0,0.00031714,2]
[349300839,1737106267156,-1268.0,0.00031714,2]
[349300840,1737106267167,-150.0,0.00031714,2]
[349300841,1737106267177,-150.0,0.00031714,2]
[349300842,1737106267187,-970.157,0.00031714,2]
[349300843,1737106267196,-279.204263,0.00031748,2]
[349300844,1737106267208,-228.53021196,0.0003178,2]
[349300845,1737106267218,-302.93977955,0.0003178,2]
[349300846,1737106267227,-1430.46616406,0.0003178,2]
[349300847,1737106267241,-662.94397405,0.0003178,2]
[349300848,1737106267251,-292.30818131,0.0003178,2]
[349300849,1737106267261,-553.05915569,0.0003178,2]
[349300850,1737106267271,-678.0080995,0.00031858,2]
[349300851,1737106267280,-7646.0356482,0.00031858,2]
[349300852,1737106267290,-176.8753951,0.00031858,2]
[349300853,1737106267299,-368.08922729,0.00031858,2]
[349300854,1737106267508,-200.0,0.00024163,2]
[349300855,1737106267518,-116.50041163,0.00024899,2]
[349300856,1737106267532,-383.49958837,0.00024899,2]
[349300857,1737106267541,-395.0698403,0.00024997,2]
[349300858,1737106267554,-104.9301597,0.00024997,2]
[349300859,1737106267563,-500.0,0.00024997,2]
[349300860,1737106267572,-500.0,0.00024998,2]
[349300861,1737106267581,-500.0,0.00024998,2]
[349300862,1737106267590,-500.0,0.00024998,2]
[349300863,1737106267599,-500.0,0.00024999,2]
[349300864,1737106267609,-500.0,0.00024999,2]
[349300865,1737106267619,-423.41743317,0.00024999,2]
[349300866,1737106267628,-111.08963255,0.00024999,2]
[349300867,1737106267645,-500.0,0.00024899,2]
[349300868,1737106267656,-388.91036745,0.00024999,2]
[349300869,1737106267665,-500.0,0.0003074,2]
[349300870,1737106267675,-500.0,0.0003074,2]
[349300871,1737106267684,-500.0,0.0003074,2]
[349300872,1737106267694,-500.0,0.0003074,2]
[349300873,1737106267703,-500.0,0.0003074,2]
[349300874,1737106267712,-500.0,0.0003074,2]
[349300875,1737106267721,-500.0,0.0003074,2]
[349300876,1737106267730,-500.0,0.0003074,2]
[349300877,1737106267740,-3505.67006811,0.00031858,2]
[349300878,1737106267754,-356.32510013,0.0003187,2]
[349300879,1737106267763,-500.0,0.00031879,2]
[349300880,1737106267773,-539.02,0.00031879,2]
[349300881,1737106267783,-500.0,0.00031879,2]
[349300882,1737106267793,-384.99233623,0.00031879,2]
[349300883,1737106267803,-1660.64,0.00031879,2]
[349300884,1737106267812,-1660.64,0.00031879,2]
[349300885,1737106267823,-1660.64,0.00031879,2]
[349300886,1737106267832,-1660.64,0.00031879,2]
[349300887,1737106267843,-1660.64,0.00031879,2]
[349300888,1737106267852,-1660.64,0.00031879,2]
[349300889,1737106267862,-1660.64,0.00031879,2]
[349300890,1737106267871,-1660.64,0.00031879,2]
[349300891,1737106267880,-1660.64,0.00031879,2]
[349300892,1737106267889,-1660.64,0.00031879,2]
[349300893,1737106267901,-508.89600778,0.00031879,2]
[349300894,1737106267912,-500.0,0.00031879,2]
[349300895,1737106267922,-500.0,0.00031879,2]
[349300896,1737106267932,-500.0,0.00031879,2]
[349300897,1737106267942,-500.0,0.00031879,2]
[349300898,1737106267952,-305.84034338,0.00031879,2]
[349300899,1737106267962,-418.86,0.00031879,2]
[349300900,1737106267972,-500.0,0.00031879,2]
[349300901,1737106267982,-500.0,0.00031879,2]
[349300902,1737106267991,-500.0,0.00031879,2]
[349300903,1737106268001,-500.0,0.00031879,2]
[349300904,1737106268011,-500.0,0.00031879,2]
[349300905,1737106268020,-500.0,0.00031879,2]
[349300906,1737106268030,-500.0,0.00031879,2]
[349300907,1737106268040,-500.0,0.00031879,2]
[349300908,1737106268049,-500.0,0.00031879,2]
[349300909,1737106268058,-500.0,0.00031879,2]
[349300910,1737106268068,-500.0,0.00031879,2]
[349300911,1737106268077,-500.0,0.00031879,2]
[349300912,1737106268086,-500.0,0.00031879,2]
[349300913,1737106268096,-500.0,0.00031879,2]
[349300914,1737106268105,-500.0,0.00031879,2]
[349300915,1737106268115,-500.0,0.00031879,2]
[349300916,1737106268125,-500.0,0.00031879,2]
[349300917,1737106268135,-500.0,0.00031879,2]
[349300918,1737106268145,-500.0,0.00031879,2]
[349300919,1737106268157,-500.0,0.00031879,2]
[349300920,1737106268167,-337.5730841,0.00031879,2]
[349300921,1737106268177,-500.0,0.00031879,2]
[349300922,1737106268187,-500.0,0.00031879,2]
[349300923,1737106268197,-500.0,0.00031879,2]
[349300924,1737106268208,-468.97444831,0.00031879,2]
[349300925,1737106268218,-5616.9125049,0.0003188,7]
[349300926,1737106268235,-1296.48908062,0.0003188,7]
[349300927,1737106268246,-6380.90799268,0.0003188,7]
[349300928,1737106268257,-580.36774337,0.0003188,7]
[349300929,1737106268268,-13917.51677167,0.0003188,7]
[349300930,1737106268284,-500.0,0.00024997,2]
[349300931,1737106268293,-950.72610629,0.0003188,7]
[349300932,1737106268304,-38235.07818096,0.0003188,7]
[349300933,1737106268315,-265.90530553,0.0003188,7]
[349300934,1737106268326,-500.0,0.0003188,7]
[349300935,1737106268337,-7272.04793634,0.0003188,7]
[349300936,1737106268351,-332.8013856,0.0003074,2]
[349300937,1737106268362,-167.1986144,0.0003074,2]
[349300938,1737106268371,-8820.4823279,0.0003188,7]
[349300939,1737106268386,-500.0,0.00024997,2]
[349300940,1737106268395,-894.723596,0.0003188,7]
[349300941,1737106269089,84923.0,0.00023199,30]
[349300944,1737107194142,-275.06296273,0.00023284,2]
[349300945,1737107220393,155.34,0.00010137,2]
[349300947,1737107225099,-155.34,0.00018065,2]
[349300948,1737107225121,-1632.67545852,0.00023185,2]
[349300949,1737107245104,-657.52,0.00022188,2]
[349300950,1737107245127,-940.61500476,0.00023185,2]
[349300971,1737107432287,-300.0,0.00023284,2]
[349300972,1737107432297,-166.29797612,0.00023285,2]
[349300973,1737107432308,-302.1030809,0.00023285,2]
[349300974,1737107432319,-1000.398,0.00023285,2]
[349300975,1737107432344,-4688.48983725,0.00023285,2]
[349300976,1737107432405,-282.01676575,0.00023285,2]
[349300977,1737107432520,-96015.70433998,0.00023285,2]
[349300978,1737107432530,-1200.0,0.00023571,2]
[349300979,1737107432539,-1049.42957751,0.00024004,2]
[349300980,1737107432549,-3223.43,0.00024104,2]
[349300981,1737107432559,-688.57930176,0.0002423,2]
[349300982,1737107432569,-566.4,0.0002433,5]
[349300983,1737107432578,-1000.0,0.00024353,2]
[349300984,1737107432588,-23900.0,0.00024353,2]
[349300985,1737107432598,-1303.76060107,0.00024353,2]
[349300986,1737107432610,-3165.50000002,0.00024353,2]
[349300987,1737107432641,-1103.55713475,0.00024353,2]
[349300988,1737107432702,-4651.5,0.00024353,2]
[349300989,1737107432715,-310.05771303,0.00024353,2]
[349300990,1737107432727,-1105.34191,0.00024353,2]
[349301063,1737107438131,-1255.4835239,0.00024353,2]
[349301064,1737107438189,-275.51859053,0.00024353,2]
[349301065,1737107438201,-1107.45050831,0.00024353,2]
[349301066,1737107438210,-1200.0,0.00024444,2]
[349301067,1737107438220,-657.52,0.00024452,2]
[349301068,1737107438229,-231.1,0.00024516,2]
[349301069,1737107438238,-381.56,0.000246,2]
[349301070,1737107438247,-486.79,0.00024657,14]
[349301071,1737107438256,-250.0,0.00024687,2]
[349301072,1737107438266,-1041.7734,0.00024799,2]
[349301073,1737107438275,-782.250106,0.000248,7]
[349301074,1737107438284,-215.52,0.00024889,2]
[349301075,1737107438294,-9675.6263,0.00024896,2]
[349301076,1737107438303,-2219.87,0.00024898,8]
[349301077,1737107438312,-178.97,0.00024898,8]
[349301078,1737107438322,-500.0,0.00024898,2]
[349301079,1737107438331,-510.98328462,0.00024898,2]
[349301080,1737107438340,-500.0,0.00024898,2]
[349301081,1737107438349,-500.0,0.00024898,2]
[349301082,1737107438358,-220.0,0.00024898,2]
[349301083,1737107438367,-995.39268005,0.00024899,2]
[349301084,1737107438379,-76323.80389433,0.00024899,2]
[349301085,1737107438389,-500.8680478,0.00024899,2]
[349301086,1737107438399,-500.0,0.00024899,2]
[349301087,1737107438408,-500.0,0.00024899,2]
[349301088,1737107438418,-500.0,0.00024899,2]
[349301089,1737107438427,-500.0,0.00024899,2]
[349301090,1737107438436,-500.0,0.00024899,2]
[349301091,1737107438445,-500.0,0.00024899,2]
[349301092,1737107438454,-500.0,0.00024899,2]
[349301093,1737107438463,-500.0,0.00024899,2]
[349301094,1737107438474,-500.0,0.00024899,2]
[349301095,1737107438483,-500.0,0.00024899,2]
[349301096,1737107438493,-500.0,0.00024899,2]
[349301097,1737107438502,-500.0,0.00024899,2]
[349301098,1737107438512,-500.0,0.00024899,2]
[349301099,1737107438521,-500.0,0.00024899,2]
[349301100,1737107438531,-500.0,0.00024899,2]
[349301101,1737107438540,-500.0,0.00024899,2]
[349301102,1737107438549,-500.0,0.00024899,2]
[349301103,1737107438559,-359.97043443,0.00024899,2]
[349301104,1737107438568,-500.0,0.00024899,2]
[349301105,1737107438578,-3467.0,0.000249,2]
[349301106,1737107438587,-215.52,0.00024986,2]
[349301107,1737107438597,-500.0,0.00024996,2]
[349301108,1737107438606,-495.94865268,0.00024996,2]
[349301109,1737107438616,-500.0,0.00024996,2]
[349301110,1737107438625,-500.0,0.00024996,2]
[349301111,1737107438635,-500.0,0.00024996,2]
[349301112,1737107438644,-500.0,0.00024996,2]
[349301113,1737107438654,-500.0,0.00024996,2]
[349301114,1737107438664,-500.0,0.00024996,2]
[349301115,1737107438673,-500.0,0.00024996,2]
[349301116,1737107438682,-500.0,0.00024996,2]
[349301117,1737107438692,-500.0,0.00024996,2]
[349301118,1737107438702,-500.0,0.00024996,2]
[349301119,1737107438712,-500.0,0.00024996,2]
[349301120,1737107438723,-500.0,0.00024996,2]
[349301121,1737107438733,-500.0,0.00024996,2]
[349301122,1737107438742,-500.0,0.00024996,2]
[349301123,1737107438751,-500.0,0.00024996,2]
[349301124,1737107438760,-500.0,0.00024996,2]
[349301125,1737107438770,-500.0,0.00024996,2]
[349301126,1737107438779,-608.15158489,0.00024996,2]
[349301127,1737107438788,-500.0,0.00024996,2]
[349301128,1737107438798,-283.36609344,0.00024996,2]
[349301129,1737107438807,-500.0,0.00024996,2]
[349301130,1737107438816,-500.0,0.00024996,2]
[349301131,1737107438826,-500.0,0.00024996,2]
[349301132,1737107438835,-500.0,0.00024996,2]
[349301133,1737107438844,-500.0,0.00024996,2]
[349301134,1737107438853,-500.0,0.00024996,2]
[349301135,1737107438863,-500.0,0.00024996,2]
[349301136,1737107438872,-500.0,0.00024996,2]
[349301137,1737107438881,-500.0,0.00024996,2]
[349301138,1737107438890,-500.0,0.00024996,2]
[349301139,1737107438900,-500.0,0.00024996,2]
[349301140,1737107438909,-54.94170736,0.00024996,2]
[349301141,1737107438920,-352.2887677,0.00024996,2]
[349301142,1737107438931,-92.76952494,0.00024996,2]
[349301143,1737107438941,-180.28285479,0.00024996,2]
[349301144,1737107438950,-500.0,0.00024996,2]
[349301145,1737107438959,-500.0,0.00024996,2]
[349301146,1737107438968,-500.0,0.00024996,2]
[349301147,1737107438977,-509.07607818,0.00024996,2]
[349301148,1737107438987,-485.25267437,0.00024996,2]
[349301149,1737107438998,-14.74732563,0.00024996,2]
[349301150,1737107439007,-494.42056799,0.00024996,2]
[349301151,1737107439023,-5.57943201,0.00024996,2]
[349301152,1737107439032,-258.09964549,0.00024996,2]
[349301153,1737107439181,-177.57055529,0.00024996,2]
[349301154,1737107439192,-64.32979922,0.00024996,2]
[349301155,1737107439201,-500.0,0.00024996,2]
[349301156,1737107439210,-500.0,0.00024996,2]
[349301157,1737107439219,-500.0,0.00024996,2]
[349301158,1737107439228,-502.88998644,0.00024996,2]
[349301159,1737107439258,-93.06422795,0.00024996,2]
[349301160,1737107439267,-381.49556829,0.00024996,2]
[349301161,1737107439276,-500.0,0.00024996,2]
[349301162,1737107439285,-500.0,0.00024996,2]
[349301163,1737107439294,-500.0,0.00024996,2]
[349301164,1737107439303,-500.0,0.00024996,2]
[349301165,1737107439312,-174.49265737,0.00024996,2]
[349301166,1737107439321,-500.0,0.00024996,2]
[349301167,1737107439330,-191.25602465,0.00024996,2]
[349301168,1737107439340,-500.0,0.00024996,2]
[349301169,1737107439351,-234.93292892,0.00024996,2]
[349301170,1737107439363,-265.06707108,0.00024996,2]
[349301171,1737107439373,-500.0,0.00024996,2]
[349301172,1737107439382,-500.0,0.00024996,2]
[349301173,1737107439391,-500.0,0.00024996,2]
[349301174,1737107439400,-500.66146786,0.00024996,2]
[349301175,1737107439410,-500.0,0.00024996,2]
[349301176,1737107439419,-500.0,0.00024996,2]
[349301177,1737107439428,-500.0,0.00024996,2]
[349301178,1737107439438,-500.0,0.00024996,2]
[349301179,1737107439448,-500.0,0.00024996,2]
[349301180,1737107439457,-500.0,0.00024996,2]
[349301181,1737107439466,-500.0,0.00024996,2]
[349301182,1737107439476,-501.35057815,0.00024996,2]
[349301183,1737107439485,-500.0,0.00024996,2]
[349301184,1737107439495,-500.0,0.00024996,2]
[349301185,1737107439504,-500.0,0.00024996,2]
[349301186,1737107439513,-500.0,0.00024996,2]
[349301187,1737107439523,-500.0,0.00024996,2]
[349301188,1737107439533,-500.0,0.00024996,2]
[349301189,1737107439542,-500.0,0.00024996,2]
[349301190,1737107439551,-7.86631638,0.00024996,2]
[349301191,1737107439563,-492.13368362,0.00024996,2]
[349301192,1737107439572,-500.0,0.00024996,2]
[349301193,1737107439581,-500.0,0.00024996,2]
[349301194,1737107439591,-500.0,0.00024996,2]
[349301195,1737107439601,-500.0,0.00024996,2]
[349301196,1737107439611,-500.0,0.00024996,2]
[349301197,1737107439621,-500.0,0.00024996,2]
[349301198,1737107439631,-500.0,0.00024996,2]
[349301199,1737107439640,-500.0,0.00024996,2]
[349301200,1737107439649,-500.0,0.00024996,2]
[349301201,1737107439659,-500.0,0.00024996,2]
[349301202,1737107439669,-500.0,0.00024996,2]
[349301203,1737107439678,-525.03,0.00024996,2]
[349301204,1737107439688,-500.0,0.00024996,2]
[349301205,1737107439697,-500.0,0.00024996,2]
[349301206,1737107439706,-500.0,0.00024996,2]
[349301207,1737107439715,-500.0,0.00024996,2]
[349301208,1737107439723,-244.35792186,0.00024996,2]
[349301209,1737107439739,-255.64207814,0.00024996,2]
[349301210,1737107439748,-500.0,0.00024996,2]
[349301211,1737107439757,-500.0,0.00024996,2]
[349301212,1737107439766,-500.0,0.00024996,2]
[349301213,1737107439775,-500.0,0.00024996,2]
[349301214,1737107439783,-500.0,0.00024996,2]
[349301215,1737107439792,-502.1010461,0.00024996,2]
[349301216,1737107439801,-500.0,0.00024996,2]
[349301217,1737107439811,-500.51789049,0.00024996,2]
[349301218,1737107439820,-500.0,0.00024996,2]
[349301219,1737107439829,-500.0,0.00024996,2]
[349301220,1737107439840,-500.0,0.00024996,2]
[349301221,1737107439849,-500.0,0.00024996,2]
[349301222,1737107439858,-500.0,0.00024996,2]
[349301223,1737107439867,-500.0,0.00024996,2]
[349301224,1737107439876,-500.0,0.00024996,2]
[349301225,1737107439886,-500.0,0.00024996,2]
[349301226,1737107439895,-500.0,0.00024996,2]
[349301227,1737107439904,-500.0,0.00024996,2]
[349301228,1737107439915,-500.0,0.00024996,2]
[349301229,1737107439925,-500.0,0.00024996,2]
[349301230,1737107439938,-500.0,0.00024996,2]
[349301231,1737107439955,-500.0,0.00024996,2]
[349301232,1737107439966,-500.0,0.00024996,2]
[349301233,1737107439976,-500.0,0.00024996,2]
[349301234,1737107439986,-500.0,0.00024996,2]
[349301235,1737107439995,-500.0,0.00024996,2]
[349301236,1737107440004,-500.0,0.00024996,2]
[349301237,1737107440014,-500.0,0.00024996,2]
[349301238,1737107440023,-500.0,0.00024996,2]
[349301239,1737107440033,-504.33735113,0.00024996,2]